bitfinex/quotes_ETHUSD_20220311
["timestamp","ask_amount","ask_price","bid_price","bid_amount"]
[1647034180816,0.9711905,2574.8,2574.2,0.0825552]
[1647034181014,0.9711905,2574.8,2574.5,0.00399404]
[1647034181213,0.9711905,2574.8,2574.5,0.97514404]
[1647034181415,0.9711905,2574.8,2574.6,0.07848102]
[1647034182218,0.9711905,2574.8,2574.6,0.08247504]
[1647034182418,3.25019997,2574.9,2574.6,0.08247504]
[1647034182623,3.162,2574.9,2574.6,1.05356504]
[1647034182822,0.25,2575.5,2574.9,1.69541445]
[1647034183018,0.25,2575.5,2575.0,0.08965029]
[1647034183220,1.194,2576.0,2575.0,0.08965029]
[1647034183419,1.194,2576.0,2575.1,0.07991569]
[1647034183618,1.9416874,2575.9,2575.4,0.0786183]
[1647034183817,1.2208074,2575.9,2575.5,0.07057438]
[1647034184219,1.2208074,2575.9,2575.5,0.06899753]
[1647034184863,2.1916874,2575.9,2575.6,0.00399326]
[1647034185663,1.2208074,2575.9,2575.5,0.06899753]
[1647034185869,1.2208074,2575.9,2575.6,0.00399324]
[1647034186865,1.2208074,2575.9,2575.5,0.06899753]
[1647034187072,0.97091,2575.8,2575.6,0.00399324]
[1647034188120,1.82244989,2575.7,2575.3,0.08349231]
[1647034188308,1.82244989,2575.7,2575.6,0.00399326]
[1647034189209,1.82244989,2575.7,2575.1,0.08025706]
[1647034189410,0.97096,2575.6,2575.1,0.08025706]
[1647034189614,0.97096,2575.6,2575.5,0.00399329]
[1647034190413,1.94192,2575.6,2575.1,0.08025706]
[1647034190616,1.9419363,2575.5,2575.4,0.00399334]
[1647034190815,0.97098,2575.5,2575.4,0.00399334]
[1647034191415,0.92098,2575.5,2575.4,0.00399334]
[1647034191615,1.89195,2575.5,2575.1,0.08025706]
[1647034191860,0.97097,2575.4,2575.3,0.00399339]
[1647034192866,0.97097,2575.4,2575.1,0.08025706]
[1647034192867,2.24203,2575.4,2575.1,0.08025706]
[1647034193066,0.97109,2575.3,2575.1,0.08025706]
[1647034193265,0.97109,2575.3,2575.2,0.00399344]
[1647034193672,1.87544593,2575.3,2575.2,0.00399344]
[1647034194066,0.97119,2575.2,2575.0,0.07842322]
[1647034194265,1.9423643,2575.2,2575.1,0.0039935]
[1647034194466,0.9711743,2575.2,2575.1,0.0039935]
[1647034195270,0.9711743,2575.2,2574.9,1.69541445]
[1647034195468,0.9711743,2575.2,2575.0,0.00399355]
[1647034195469,1.9423078,2575.1,2575.0,0.00399355]
[1647034195711,2.2423078,2575.1,2575.0,0.00399355]
[1647034196512,2.2423078,2575.1,2574.9,1.69541445]
[1647034196713,3.2134778,2575.1,2574.9,1.69940804]
[1647034197521,4.1846378,2575.1,2574.9,1.69940804]
[1647034197719,4.1846378,2575.1,2574.9,1.69541445]
[1647034200068,1.94261,2574.6,2574.1,1.66325281]
[1647034200262,1.94261,2574.6,2574.2,0.06962188]
[1647034200665,1.905057,2574.6,2574.2,0.06962188]
[1647034201076,1.905057,2574.6,2574.3,1.58960039]
[1647034201271,1.9426061,2574.5,2574.3,1.58960039]
[1647034201467,1.9426061,2574.5,2574.3,0.00427231]
[1647034201867,0.9712861,2574.5,2574.3,0.00427231]
[1647034202276,0.9712861,2574.5,2574.3,0.0907973]
[1647034202471,0.9712861,2574.5,2574.1,0.97125]
[1647034202472,0.9712861,2574.5,2573.9,0.08315615]
[1647034202676,0.9712861,2574.5,2574.3,0.00427231]
[1647034203410,1.9426261,2574.5,2574.3,0.00427231]
[1647034203611,0.8425921,2574.4,2573.9,0.08573886]
[1647034203810,0.9713756,2574.3,2574.0,1.58978561]
[1647034204012,1.0925921,2574.4,2574.3,0.72867113]
[1647034204211,0.25,2574.4,2574.3,0.72867113]
[1647034204911,0.25,2574.4,2574.3,0.72439882]
[1647034205912,1.94257,2574.9,2574.3,0.72439882]
[1647034206113,1.94257,2574.9,2574.3,2.31409171]
[1647034206314,0.9712399,2574.7,2574.4,1.58969289]
[1647034206514,3.43565745,2575.0,2574.5,0.07820729]
[1647034207569,3.43565745,2575.0,2574.6,0.00412793]
[1647034208166,0.9711675,2574.8,2574.6,0.00412793]
[1647034208566,0.9711675,2574.8,2574.5,0.07820729]
[1647034208766,0.9711675,2574.8,2574.7,0.00412791]
[1647034208969,2.19239,2575.0,2574.7,0.00412791]
[1647034208970,0.25,2575.0,2574.7,0.00412791]
[1647034209171,1.9730543,2574.8,2574.7,0.07511007]
[1647034209369,1.9730543,2574.8,2574.7,1.66462244]
[1647034209766,1.9730543,2574.8,2574.7,1.66049453]
[1647034210267,1.9730543,2574.8,2574.7,0.07098216]
[1647034210473,1.9730543,2574.8,2574.7,1.66047335]
[1647034210713,1.9730543,2574.8,2574.7,1.66048313]
[1647034215267,1.9730543,2574.8,2574.7,1.85448313]
[1647034215466,1.9730543,2574.8,2574.7,1.66048313]
[1647034216269,1.9730543,2574.8,2574.7,5.16048313]
[1647034216672,1.9730543,2574.8,2574.7,5.85599284]
[1647034217370,0.00399159,2576.0,2574.9,1.04806546]
[1647034217570,0.00399159,2576.0,2575.1,0.07926559]
[1647034217768,0.00399159,2576.0,2575.3,0.08841741]
[1647034217969,0.00399159,2576.0,2575.5,0.08262096]
[1647034218216,0.3884,2576.4,2575.6,1.58950097]
[1647034218415,4.13455266,2576.7,2576.2,1.048329]
[1647034218614,4.13455266,2576.7,2576.3,0.08366294]
[1647034218813,3.1511,2576.7,2575.9,0.07229859]
[1647034219012,3.1511,2576.7,2576.0,1.58871708]
[1647034219210,3.1511,2576.7,2576.1,0.0818314]
[1647034219709,3.1511,2576.7,2575.9,0.07530396]
[1647034219710,0.00399255,2576.4,2575.9,0.07530396]
[1647034219911,0.00399255,2576.4,2576.3,0.98014069]
[1647034220513,1.0,2576.6,2576.3,0.88971278]
[1647034220717,0.00399289,2576.5,2576.4,0.09008118]
[1647034221713,1.0,2576.6,2576.4,0.09008118]
[1647034221972,1.00399284,2576.6,2576.4,0.09008118]
[1647034222372,0.93486769,2576.5,2576.4,0.09008118]
[1647034222770,0.00399284,2576.6,2576.4,0.09008118]
[1647034223769,0.00399284,2576.6,2576.3,0.97047]
[1647034223770,0.9496,2576.5,2576.3,0.97047]
[1647034224770,0.9496,2576.5,2576.4,0.07501632]
[1647034225622,0.9496,2576.5,2576.4,0.07621798]
[1647034226716,0.9496,2576.5,2576.1,0.08061156]
[1647034227916,0.00427675,2576.4,2576.1,0.08061156]
[1647034228915,4.26486843,2576.7,2576.1,0.08061156]
[1647034229119,0.00427678,2576.4,2576.1,0.08061156]
[1647034230159,4.26486843,2576.7,2576.1,0.08061156]
[1647034230360,0.00427678,2576.4,2576.1,0.08061156]
[1647034231360,4.26486843,2576.7,2576.1,0.08061156]
[1647034231558,0.00427678,2576.4,2576.1,0.08061156]
[1647034231963,0.00427678,2576.4,2576.1,3.58061156]
[1647034232164,0.00427678,2576.4,2576.2,0.07698225]
[1647034232367,0.00427678,2576.4,2576.3,0.07121989]
[1647034232564,0.9496,2576.9,2576.3,0.07121989]
[1647034233122,0.00414847,2576.4,2576.3,0.88088512]
[1647034233717,1.78060213,2576.9,2576.3,0.88088512]
[1647034233913,0.9496,2576.9,2576.5,1.04316322]
[1647034234212,0.9496,2576.9,2576.6,0.08664972]
[1647034234611,6.6144,2577.1,2576.4,0.08137845]
[1647034235011,0.9496,2576.8,2576.4,0.08137845]
[1647034235412,0.9496,2576.8,2576.5,0.194]
[1647034235614,0.9496,2576.8,2576.6,0.07769699]
[1647034235811,0.0041482,2576.9,2576.8,6.74466121]
[1647034236016,0.0041482,2576.9,2576.8,0.74466121]
[1647034236220,9.9078,2577.7,2576.9,0.07863211]
[1647034236413,1.14837838,2577.5,2577.0,1.1418406]
[1647034236614,9.9078,2577.7,2577.1,0.08142732]
[1647034237272,7.7447,2577.9,2577.1,0.08142732]
[1647034237671,1.0,2577.2,2577.1,0.08142732]
[1647034237871,1.0,2577.2,2577.1,2.02162732]
[1647034238069,1.0,2577.2,2577.1,1.9402]
[1647034243020,1.0,2577.2,2577.1,2.1342]
[1647034247069,1.0,2577.2,2577.0,4.0520307]
[1647034247070,1.0,2577.2,2577.0,0.68492621]
[1647034247271,1.0,2577.1,2577.0,0.68492621]
[1647034247470,1.0,2577.1,2577.0,1.52785124]
[1647034248126,1.0,2577.1,2577.0,1.60736402]
[1647034248314,1.0,2577.1,2577.0,2.49788134]
[1647034248715,1.0,2577.1,2577.0,3.46795134]
[1647034249319,1.0,2577.1,2577.0,3.47795134]
[1647034249515,1.0,2577.1,2577.0,3.46795134]
[1647034254873,0.00399768,2577.2,2577.0,3.46795134]
[1647034255075,0.91822472,2577.5,2577.0,3.46795134]
[1647034255719,0.00399765,2577.2,2577.0,3.46795134]
[1647034255920,0.87310888,2577.8,2577.5,0.77162732]
[1647034256519,3.5,2577.7,2577.5,0.77162732]
[1647034257927,0.87310888,2577.8,2577.5,0.77162732]
[1647034258326,7.28836826,2577.9,2577.5,0.77162732]
[1647034258524,7.28836826,2577.9,2577.5,1.74163732]
[1647034259576,7.28836826,2577.9,2577.6,1.12822252]
[1647034259782,7.2447,2577.9,2577.6,2.09814252]
[1647034259977,6.9947,2577.9,2577.6,2.09814252]
[1647034260577,6.99869734,2577.9,2577.8,0.07051625]
[1647034260977,0.00399734,2577.9,2577.8,0.07051625]
[1647034261377,3.236,2578.2,2577.8,0.07051625]
[1647034261576,3.236,2578.2,2577.9,0.96978]
[1647034261781,0.0040882,2578.0,2577.9,0.96978]
[1647034262582,3.236,2578.2,2577.9,0.96978]
[1647034262782,0.00408814,2578.1,2578.0,0.94317643]
[1647034263719,0.25,2578.3,2578.0,0.94317643]
[1647034263917,0.25,2578.3,2578.0,1.91291643]
[1647034264118,0.00408809,2578.2,2578.0,1.91291643]
[1647034264925,0.25,2578.3,2578.0,1.91291643]
[1647034265124,0.25,2578.3,2578.0,2.88260643]
[1647034265329,0.00398316,2578.2,2578.1,0.08283708]
[1647034266126,0.00398316,2578.2,2578.1,1.86409753]
[1647034266326,7.0047,2578.7,2578.1,0.27673708]
[1647034266526,0.00271796,2578.3,2578.2,1.163317]
[1647034266725,0.00271796,2578.3,2578.2,2.02022388]
[1647034267376,3.0236,2578.9,2578.3,0.96938]
[1647034267581,3.0236,2578.9,2578.8,0.96937]
[1647034267777,9.7327,2579.3,2578.8,0.96937]
[1647034267977,3.50146034,2579.5,2578.6,1.93873]
[1647034267978,3.5,2579.5,2578.6,1.93873]
[1647034268180,0.00146034,2579.5,2579.3,0.91110061]
[1647034268380,9.90866034,2579.6,2579.3,1.0067]
[1647034268579,9.9072,2579.6,2579.3,1.0067]
[1647034268981,0.00272395,2579.5,2579.3,1.0067]
[1647034269380,0.00272395,2579.5,2579.2,1.7954224]
[1647034269584,0.00272395,2579.5,2579.4,0.96921]
[1647034269781,9.9072,2579.6,2579.3,1.93837]
[1647034269782,3.0658,2579.6,2579.3,1.93837]
[1647034269981,0.00272395,2579.5,2579.3,1.93837]
[1647034270925,3.0658,2579.6,2579.3,1.93837]
[1647034271325,0.00272395,2579.5,2579.3,1.93837]
[1647034271526,0.00272395,2579.5,2579.4,0.96922]
[1647034272129,3.49738308,2579.8,2579.3,1.93837]
[1647034272538,0.00428954,2579.6,2579.3,1.93837]
[1647034273530,0.25,2579.7,2579.3,1.93837]
[1647034274131,0.25,2579.7,2579.3,2.90761]
[1647034275073,13.25528,2580.1,2579.3,2.90761]
[1647034275375,0.25,2579.8,2579.4,0.96915]
[1647034275577,12.286,2580.1,2579.4,0.96915]
[1647034275772,3.3147,2580.1,2579.4,0.96915]
[1647034276175,0.00271449,2579.7,2579.4,0.96915]
[1647034276374,0.00271449,2579.7,2579.6,1.78518563]
[1647034276574,0.00271449,2579.7,2579.6,1.87428819]
[1647034276976,3.3147,2580.1,2579.6,1.87428819]
[1647034277178,3.3147,2580.1,2579.6,1.78514563]
[1647034277377,0.00271496,2579.8,2579.7,0.08297526]
[1647034278223,3.0647,2580.1,2579.7,1.05205526]
[1647034278422,0.00271496,2579.9,2579.8,0.0818008]
[1647034279020,0.00271496,2579.9,2579.8,0.0918008]
[1647034279419,3.0647,2580.1,2580.0,1.13268566]
[1647034279620,4.65541583,2580.5,2580.1,0.08657439]
[1647034279819,1.16627342,2580.5,2580.1,0.08657439]
[1647034280221,3.5,2580.4,2580.1,1.05564439]
[1647034280420,1.16627342,2580.5,2580.1,1.05564439]
[1647034280620,1.15541583,2580.5,2580.2,0.07781665]
[1647034280826,0.09519997,2580.5,2580.2,0.07781665]
[1647034281020,0.00429215,2580.4,2580.2,0.07781665]
[1647034281623,0.00429215,2580.4,2580.2,2.01570665]
[1647034281866,0.007,2580.5,2580.2,2.01570665]
[1647034282071,0.00429212,2580.4,2580.2,2.01570665]
[1647034283072,0.007,2580.5,2580.2,2.01570665]
[1647034283476,0.00429212,2580.4,2580.2,2.01570665]
[1647034283874,0.21129212,2580.6,2580.2,2.01570665]
[1647034285723,6.21129212,2580.6,2580.0,1.66594651]
[1647034285927,0.04413974,2580.5,2580.0,1.66594651]
[1647034286124,0.21129212,2580.6,2580.0,2.5166906]
[1647034286420,0.21129212,2580.6,2580.2,0.96896]
[1647034287527,1.18016982,2580.6,2580.2,0.96896]
[1647034287729,0.9688777,2580.6,2580.3,0.08058988]
[1647034288129,0.00421158,2580.5,2580.3,0.08058988]
[1647034288327,0.00421158,2580.5,2580.1,0.08293642]
[1647034288929,0.97318008,2580.5,2580.1,0.08293642]
[1647034289231,3.5,2580.4,2580.1,0.08293642]
[1647034289472,3.5,2580.4,2579.7,1.21278999]
[1647034289473,3.5,2580.4,2579.7,0.0824237]
[1647034289669,3.971,2580.4,2579.7,0.0824237]
[1647034290175,1.06591531,2579.8,2579.7,0.0824237]
[1647034290368,1.06591531,2579.8,2579.4,1.33231819]
[1647034290570,3.5,2579.7,2579.4,1.33231819]
[1647034290769,1.06591531,2579.8,2579.4,0.08601819]
[1647034290969,1.06591531,2579.8,2579.1,0.07878856]
[1647034291173,1.31591531,2579.8,2579.1,0.07878856]
[1647034291376,2.28522531,2579.8,2579.1,0.07878856]
[1647034291570,5.78522531,2579.8,2579.1,0.07878856]
[1647034292175,0.969439,2579.7,2579.1,0.07878856]
[1647034292376,0.96942,2579.5,2579.1,0.07878856]
[1647034292778,3.5,2579.4,2579.1,0.07878856]
[1647034293225,3.5,2579.4,2578.9,0.01600591]
[1647034293423,0.81904448,2579.2,2578.9,0.01600591]
[1647034293628,3.5,2579.1,2578.9,0.01600591]
[1647034293823,3.5,2579.1,2578.8,0.07479456]
[1647034294628,4.46953,2579.1,2578.8,0.07479456]
[1647034294827,5.4390729,2579.1,2578.8,0.07479456]
[1647034295828,5.4390729,2579.1,2578.5,0.08423565]
[1647034296026,5.4390729,2579.1,2578.4,0.01600665]
[1647034296027,1.44069,2579.0,2578.4,0.01600665]
[1647034296226,0.9697147,2578.8,2578.4,0.01600665]
[1647034296430,5.7394294,2578.9,2578.2,0.07025101]
[1647034296630,5.7394294,2578.9,2578.3,0.01606778]
[1647034296631,3.8,2578.9,2578.3,0.01606778]
[1647034296873,0.89705347,2578.5,2578.3,0.01606778]
[1647034297477,0.89705347,2578.5,2578.2,0.07025101]
[1647034297876,4.39705347,2578.5,2578.2,0.07025101]
[1647034298379,6.33657107,2578.5,2578.2,0.07025101]
[1647034299580,2.83657107,2578.5,2578.2,0.07025101]
[1647034299879,3.5,2578.4,2578.2,0.07025101]
[1647034300080,3.5,2578.4,2577.7,1.1413]
[1647034300282,0.9698937,2578.3,2577.9,0.08253934]
[1647034300481,0.9698937,2578.3,2577.8,0.01680583]
[1647034300482,4.47003,2578.2,2577.8,0.01680583]
[1647034300924,4.51639007,2578.2,2577.8,0.01680583]
[1647034301126,1.35704989,2578.1,2577.5,0.77162732]
[1647034301326,6.410504,2578.0,2577.5,0.77162732]
[1647034301527,1.27019,2577.9,2577.5,0.79263552]
[1647034301826,3.5,2577.8,2577.5,0.79263552]
[1647034302226,6.0,2577.7,2577.1,0.1938]
[1647034302429,0.97031,2577.5,2576.9,0.08979108]
[1647034302630,3.5,2577.4,2577.1,0.01680745]
[1647034302826,3.8,2577.4,2577.1,0.01680745]
[1647034303229,3.8,2577.4,2577.1,7.45e-06]
[1647034303230,1.05895602,2577.3,2577.1,7.45e-06]
[1647034303429,3.5,2577.2,2576.5,0.07826274]
[1647034303628,6.0,2577.0,2576.5,0.07826274]
[1647034303828,3.971,2576.9,2575.7,1.28206]
[1647034304025,3.971,2576.9,2575.8,1.58835878]
[1647034304226,3.971,2576.9,2575.9,0.08048458]
[1647034304481,3.971,2576.9,2576.1,0.07531135]
[1647034304674,3.971,2576.9,2575.5,0.08331441]
[1647034304675,0.9705888,2576.4,2575.5,0.08331441]
[1647034304873,0.9705888,2576.4,2575.4,4.0805668]
[1647034304874,0.30192467,2576.5,2575.6,1.58842774]
[1647034305073,0.05506879,2576.5,2575.7,1.58842774]
[1647034305272,0.06350355,2576.8,2575.7,1.58842774]
[1647034305474,0.88286135,2576.6,2576.0,1.01133654]
[1647034305675,0.06289163,2576.5,2576.0,1.01133654]
[1647034306174,0.06289163,2576.5,2575.8,1.1267]
[1647034307477,0.06289163,2576.5,2576.0,0.00428956]
[1647034308156,0.05429479,2576.3,2576.0,0.00428956]
[1647034308342,0.05429479,2576.3,2575.8,2.25452745]
[1647034308543,0.05429479,2576.3,2576.1,0.0042895]
[1647034309548,0.05429479,2576.3,2575.8,1.1267]
[1647034309549,0.05429479,2576.3,2575.4,0.58490712]
[1647034309749,0.85644391,2576.2,2575.7,1.05135488]
[1647034309945,0.85644391,2576.2,2576.1,0.00428953]
[1647034310844,0.85644391,2576.2,2575.2,1.1689]
[1647034310845,0.9708052,2576.0,2575.2,1.1689]
[1647034311045,0.87409742,2575.8,2575.6,0.0171608]
[1647034311245,0.81916403,2575.8,2575.6,0.0171608]
[1647034311445,0.06553938,2575.7,2575.6,0.0171608]
[1647034311903,0.9708797,2575.5,2574.7,0.058411]
[1647034312105,0.9708797,2575.5,2574.8,1.57796329]
[1647034312310,0.9708797,2575.5,2575.1,0.01664707]
[1647034312704,0.05698299,2575.4,2575.1,0.01664707]
[1647034313105,0.97840186,2575.4,2574.7,0.058411]
[1647034313406,0.05494679,2575.1,2574.7,0.01664796]
[1647034314405,0.05494679,2575.1,2574.6,2.23760304]
[1647034314606,0.05494679,2575.1,2574.8,0.00416156]
[1647034315407,1.9420701,2575.2,2574.8,0.00416156]
[1647034315408,0.05373347,2574.9,2574.8,0.00416156]
[1647034315632,0.9712414,2574.8,2574.2,1.1407]
[1647034315821,0.9712414,2574.8,2574.4,0.01598473]
[1647034316225,0.03428192,2574.6,2574.4,0.01598473]
[1647034316823,0.03428192,2574.6,2574.3,0.67439882]
[1647034317028,0.03428192,2574.6,2574.4,0.0039958]
[1647034317227,0.9713281,2574.6,2574.4,0.0039958]
[1647034317431,0.0540566,2574.5,2574.4,0.0039958]
[1647034318127,0.0540566,2574.5,2574.3,0.67839465]
[1647034319131,0.0540566,2574.5,2574.3,0.67439882]
[1647034319376,1.9968066,2574.5,2574.3,0.67841253]
[1647034320274,0.0575192,2574.4,2574.3,0.67439882]
[1647034320676,0.0575192,2574.4,2574.3,0.67841253]
[1647034321476,0.0575192,2574.4,2574.3,0.67439882]
[1647034322283,6.1743,2574.3,2574.2,1.374e-05]
[1647034322482,7.49056873,2574.3,2574.2,1.374e-05]
[1647034322684,7.49056873,2574.3,2572.8,0.58554637]
[1647034322685,0.0587801,2574.1,2572.8,0.58554637]
[1647034322980,0.25,2574.0,2572.8,0.58554637]
[1647034323626,1.0332417,2573.7,2573.0,0.95548509]
[1647034323823,0.05847671,2573.6,2573.0,0.85548509]
[1647034324022,0.05893518,2573.5,2573.0,0.85548509]
[1647034324923,2.0048517,2573.7,2573.0,0.85548509]
[1647034324924,1.33945005,2573.7,2573.1,0.97157]
[1647034325124,1.40107212,2573.7,2573.1,0.97157]
[1647034325726,1.40107212,2573.7,2572.8,1.94309]
[1647034325727,0.9715767,2573.6,2572.8,1.94309]
[1647034325926,0.97166,2573.4,2572.8,1.94309]
[1647034326526,0.97166,2573.4,2573.0,0.00154528]
[1647034327576,0.1943,2573.9,2572.8,2.99577436]
[1647034327577,0.06068941,2574.0,2573.4,1.37499019]
[1647034327775,8.7283,2574.1,2573.4,1.45691935]
[1647034327776,0.00429189,2574.1,2573.4,1.45691935]
[1647034327983,0.0579253,2574.1,2573.4,1.45691935]
[1647034328177,0.471,2574.0,2573.4,1.45691935]
[1647034328578,1.04049704,2573.8,2573.4,1.37499019]
[1647034328976,1.04049704,2573.8,2573.6,0.00429329]
[1647034329581,0.04873989,2573.9,2573.6,0.97575329]
[1647034329979,0.04873989,2573.9,2573.6,0.97146]
[1647034330180,0.04873989,2573.9,2573.6,0.00429326]
[1647034330643,1.53434837,2573.9,2573.6,0.00429326]
[1647034331325,1.53434837,2573.9,2573.4,3.23907019]
[1647034331530,0.471,2573.9,2573.6,0.00414837]
[1647034331725,0.471,2573.9,2573.6,0.97559837]
[1647034332327,0.471,2573.9,2573.6,0.97145]
[1647034332728,0.471,2573.9,2573.6,0.97559837]
[1647034333130,0.471,2573.9,2573.6,1.96613037]
[1647034333329,0.00414761,2574.1,2573.6,2.93749037]
[1647034333528,3.0874,2574.2,2573.7,0.07106851]
[1647034333729,3.0874,2574.2,2573.8,0.07130929]
[1647034333928,0.00414761,2574.1,2573.8,0.07130929]
[1647034334372,0.00414761,2574.1,2573.8,1.04258929]
[1647034338348,3.0874,2574.2,2573.7,1.94255]
[1647034339844,0.00402027,2574.1,2573.7,1.94255]
[1647034340848,4.05882,2574.2,2573.7,1.94255]
[1647034341047,0.0040203,2574.0,2573.7,1.94255]
[1647034341888,0.0040203,2574.0,2573.6,0.00402101]
[1647034342095,1.03104332,2574.1,2573.5,0.06966298]
[1647034342297,0.00401455,2574.0,2573.6,0.97546519]
[1647034342494,0.00401455,2574.0,2573.6,0.00401519]
[1647034342495,0.87109161,2573.7,2573.6,0.00401519]
[1647034343194,0.87109161,2573.7,2573.4,1.37499019]
[1647034343502,0.87109161,2573.7,2573.5,0.00401505]
[1647034343897,0.87109161,2573.7,2573.4,1.27900524]
[1647034344495,0.87109161,2573.7,2573.4,2.25050524]
[1647034344897,0.75406862,2574.1,2573.5,1.32807852]
[1647034345098,0.25,2573.9,2573.5,1.32807852]
[1647034345397,0.25,2573.9,2573.6,0.97143]
[1647034345398,1.09822024,2573.8,2573.6,0.97143]
[1647034346055,0.52408381,2574.1,2573.6,0.97143]
[1647034346255,0.52408381,2574.1,2573.7,1.29925449]
[1647034346655,0.52408381,2574.1,2573.8,1.29925449]
[1647034347557,1.03601178,2574.0,2573.8,1.29925449]
[1647034348056,1.03601178,2574.0,2573.6,0.97145]
[1647034348256,1.04003017,2574.0,2573.7,1.27031912]
[1647034349155,1.03601178,2574.0,2573.7,1.27031912]
[1647034349593,0.00410494,2574.0,2573.7,2.24171912]
[1647034349792,0.00410494,2574.0,2573.8,1.346137]
[1647034349991,3.0874,2574.2,2573.9,1.35908681]
[1647034349992,2.99150494,2574.2,2573.9,1.35908681]
[1647034350391,2.99150494,2574.2,2574.0,1.27031912]
[1647034350592,0.93194416,2574.2,2574.0,1.27031912]
[1647034351793,0.25,2574.4,2574.0,1.27031912]
[1647034351999,6.76846481,2575.1,2574.1,3.5]
[1647034352200,6.76846481,2575.1,2574.3,0.07835172]
[1647034352398,6.7254,2575.1,2574.4,2.24138912]
[1647034352598,6.7254,2575.1,2574.5,1.27031912]
[1647034352797,0.80956396,2574.8,2574.6,1.34787577]
[1647034352997,0.80956396,2574.8,2574.7,1.27031912]
[1647034354747,0.00428908,2574.9,2574.7,1.27031912]
[1647034355352,6.2544,2575.1,2574.7,1.27031912]
[1647034355552,0.00428905,2574.9,2574.8,3.57677091]
[1647034355849,0.00428905,2574.9,2574.8,1.27031912]
[1647034356455,3.1682,2575.2,2574.8,1.27031912]
[1647034356456,3.1682,2575.2,2574.9,0.97082]
[1647034356650,3.1682,2575.2,2575.0,1.27031912]
[1647034356896,1.14734548,2575.3,2575.0,2.24114912]
[1647034357101,1.14734548,2575.3,2575.1,1.27031912]
[1647034357705,1.14734548,2575.3,2574.2,0.57866629]
[1647034357905,0.79167253,2575.2,2574.5,0.0847152]
[1647034358102,0.27579487,2575.1,2574.6,1.27698724]
[1647034358300,0.92431665,2574.8,2574.6,1.27698724]
[1647034358501,1.89553685,2574.8,2574.6,1.27698724]
[1647034359105,1.8998223,2574.8,2574.6,1.27698724]
[1647034359302,0.9286021,2574.8,2574.6,1.27698724]
[1647034360002,0.92431665,2574.8,2574.6,1.27698724]
[1647034360404,0.9286021,2574.8,2574.6,1.27698724]
[1647034360659,0.9286021,2574.8,2574.7,1.27698724]
[1647034361050,0.9286021,2574.8,2574.4,1.27698724]
[1647034361249,0.92431665,2574.8,2574.5,1.27698724]
[1647034361450,0.92431665,2574.8,2574.3,1.27698724]
[1647034362653,0.00428554,2574.7,2574.3,1.27698724]
[1647034363458,0.25,2574.6,2574.3,1.27698724]
[1647034363657,0.7641562,2574.6,2573.8,3.21861555]
[1647034363856,0.7641562,2574.6,2573.9,1.2785741]
[1647034364055,0.2763151,2574.5,2573.9,1.2785741]
[1647034364258,6.0,2574.4,2573.8,0.23382682]
[1647034364493,0.97142,2574.2,2573.6,1.99690725]
[1647034364893,0.97142,2574.2,2573.6,1.99261999]
[1647034365092,1.33639238,2574.3,2573.6,1.99261999]
[1647034365293,1.33639238,2574.3,2573.6,1.99691027]
[1647034365294,0.00428942,2574.1,2573.6,1.99691027]
[1647034365693,0.97575942,2574.1,2573.6,1.99691027]
[1647034365894,0.97575942,2574.1,2573.6,1.94691028]
[1647034366495,1.57575942,2574.1,2573.6,1.94691028]
[1647034367097,1.06329707,2573.7,2573.6,1.94691028]
[1647034369837,0.96329707,2573.7,2573.6,1.94691028]
[1647034370037,0.96329707,2573.7,2573.6,1.94262]
[1647034370439,0.96329707,2573.7,2573.5,0.08916011]
[1647034371892,0.96329707,2573.7,2573.5,0.78466982]
[1647034372499,0.96329707,2573.7,2573.4,2.94600495]
[1647034372701,0.96329707,2573.7,2573.5,0.69550971]
[1647034372900,0.96329707,2573.7,2573.4,2.94600495]
[1647034373099,0.96329707,2573.7,2573.4,1.97451495]
[1647034373299,0.96329707,2573.7,2573.4,1.27900524]
[1647034374500,0.96329707,2573.7,2573.4,2.25048524]
[1647034375201,0.05095589,2574.0,2573.4,2.25048524]
[1647034375402,3.0033,2574.1,2573.5,0.69550971]
[1647034375664,3.0033,2574.1,2573.6,1.04663292]
[1647034376245,0.93508776,2574.0,2573.6,0.97133]
[1647034376546,0.05392328,2573.9,2573.6,0.97133]
[1647034377150,0.05392328,2573.9,2573.4,2.94599495]
[1647034377750,0.93508776,2574.0,2573.4,2.94599495]
[1647034378351,0.93508776,2574.0,2573.4,3.87860138]
[1647034378551,0.93508776,2574.0,2573.5,0.69550971]
[1647034378751,0.93508776,2574.0,2573.6,0.97139]
[1647034380599,0.98169122,2574.0,2573.6,0.97139]
[1647034381200,0.04632581,2573.9,2573.4,2.25048524]
[1647034381400,1.10303834,2573.6,2573.4,2.25048524]
[1647034381805,1.10303834,2573.6,2573.4,1.27900524]
[1647034382806,1.10303834,2573.6,2573.4,1.2832955]
[1647034383347,1.01787581,2573.9,2573.4,1.2832955]
[1647034383545,0.04632581,2573.9,2573.4,2.2547755]
[1647034384448,0.04632581,2573.9,2573.5,1.22403377]
[1647034384850,0.04632581,2573.9,2573.5,2.19542377]
[1647034384851,1.15388572,2573.9,2573.5,2.19542377]
[1647034385051,2.46117108,2574.1,2573.6,1.22403377]
[1647034385256,2.46546029,2574.1,2573.6,2.19971391]
[1647034385452,2.46546029,2574.1,2573.7,1.22403377]
[1647034385853,2.46546029,2574.1,2573.8,1.22403377]
[1647034386052,2.46117108,2574.1,2573.9,1.22403377]
[1647034386250,2.4654605,2574.1,2574.0,1.22403377]
[1647034386653,0.00428942,2574.1,2574.0,1.22403377]
[1647034387401,1.22137,2574.2,2574.0,1.22403377]
[1647034387601,1.22137,2574.2,2573.6,0.00406933]
[1647034387602,0.471,2574.1,2573.6,0.00406933]
[1647034387806,1.44265,2574.1,2573.6,0.00406933]
[1647034388201,1.74265,2574.1,2573.6,0.00406933]
[1647034388403,1.74265,2574.1,2573.5,1.18096618]
[1647034388801,0.85979333,2573.6,2573.5,1.18096618]
[1647034389001,1.83149333,2573.6,2573.5,1.18096618]
[1647034389404,2.30249333,2573.6,2573.5,1.18096618]
[1647034391047,5.80249333,2573.6,2573.5,1.18096618]
[1647034392253,5.80249333,2573.6,2573.4,1.27900524]
[1647034392453,3.5,2573.5,2573.4,1.28329969]
[1647034392653,3.971,2573.5,2573.4,2.45498498]
[1647034393057,3.971,2573.5,2573.0,0.01718073]
[1647034393058,6.0,2573.4,2573.0,0.01718073]
[1647034393256,6.0,2573.4,2573.1,1.14786035]
[1647034393257,4.271,2573.3,2573.1,1.14786035]
[1647034393454,3.5,2573.2,2572.8,2.54490194]
[1647034393654,3.5,2573.2,2572.7,0.0128838]
[1647034393655,0.471,2573.1,2572.9,1.16487774]
[1647034393854,0.471,2573.1,2573.0,1.14769714]